[Event "The Schackveckan 2023: Göteborg open"]
[Site "Göteborgs schackcentrum, Vegagatan 20, Gothenburg, Sweden"]
[Date "2023.08.13"]
[Round "8.7"]
[White "Degerfeldt, Sven"]
[Black "Johansson, Roy"]
[Result "0-1"]
[TimeControl "15 minutes + 5 seconds per move from move one (Round 1 - 4) / 90 minutes + 30 seconds per move from move one (Round 5 - 8)"]
[WhiteFideId "1717430"]
[BlackFideId "1745972"]
[WhiteElo "1821"]
[BlackElo "1890"]

1. d4 {[%clk 01:30:34]} {[%emt 00:00:25]} f5 {[%clk 01:30:49]} {[%emt
00:00:13]} 2. g3 {[%clk 01:30:35]} {[%emt 00:00:28]} g6 {[%clk 01:31:14]}
{[%emt 00:00:05]} 3. Bg2 {[%clk 01:30:55]} {[%emt 00:00:09]} Nf6 {[%clk
01:31:38]} {[%emt 00:00:07]} 4. c4 {[%clk 01:30:52]} {[%emt 00:00:32]} Bg7
{[%clk 01:32:00]} {[%emt 00:00:08]} 5. Nc3 {[%clk 01:31:04]} {[%emt 00:00:18]}
O-O {[%clk 01:32:21]} {[%emt 00:00:10]} 6. Nf3 {[%clk 01:27:59]} {[%emt
00:03:35]} d6 {[%clk 01:32:41]} {[%emt 00:00:11]} 7. e3 {[%clk 01:27:56]}
{[%emt 00:00:31]} Qe8 {[%clk 01:31:52]} {[%emt 00:01:20]} 8. O-O {[%clk
01:26:14]} {[%emt 00:02:11]} e5 {[%clk 01:31:17]} {[%emt 00:01:05]} 9. Qc2
{[%clk 01:16:51]} {[%emt 00:09:53]} e4 {[%clk 01:29:22]} {[%emt 00:02:26]} 10.
Nd2 {[%clk 01:16:18]} {[%emt 00:01:03]} Nc6 {[%clk 01:24:46]} {[%emt 00:05:06]}
11. a3 {[%clk 01:16:12]} {[%emt 00:00:36]} Bd7 {[%clk 01:23:55]} {[%emt
00:01:20]} 12. b4 {[%clk 01:16:09]} {[%emt 00:00:33]} g5 {[%clk 01:23:15]}
{[%emt 00:01:11]} 13. Nb3 {[%clk 01:14:45]} {[%emt 00:01:54]} Ng4 {[%clk
01:14:49]} {[%emt 00:08:55]} 14. b5 {[%clk 01:13:54]} {[%emt 00:01:22]} Ne7
{[%clk 01:14:16]} {[%emt 00:01:03]} 15. h3 {[%clk 01:07:30]} {[%emt 00:06:52]}
Nf6 {[%clk 01:14:12]} {[%emt 00:00:35]} 16. Bd2 {[%clk 01:07:13]} {[%emt
00:00:47]} Qh5 {[%clk 01:11:22]} {[%emt 00:03:21]} 17. Qd1 {[%clk 00:50:05]}
{[%emt 00:17:38]} Qg6 {[%clk 01:10:05]} {[%emt 00:01:46]} 18. Re1 {[%clk
00:49:18]} {[%emt 00:01:17]} h5 {[%clk 01:08:55]} {[%emt 00:01:40]} 19. Qe2
{[%clk 00:45:51]} {[%emt 00:03:57]} Rae8 {[%clk 01:07:21]} {[%emt 00:02:04]} 20.
Rac1 {[%clk 00:41:39]} {[%emt 00:04:42]} h4 {[%clk 01:06:31]} {[%emt 00:01:20]}
21. Qf1 {[%clk 00:30:38]} {[%emt 00:11:31]} g4 {[%clk 01:02:22]} {[%emt
00:04:40]} 22. hxg4 {[%clk 00:29:10]} {[%emt 00:01:57]} hxg3 {[%clk 01:01:21]}
{[%emt 00:01:32]} 23. fxg3 {[%clk 00:29:06]} {[%emt 00:00:34]} Nxg4 {[%clk
00:55:34]} {[%emt 00:06:17]} 24. Bh3 {[%clk 00:28:11]} {[%emt 00:01:23]} Rf6
{[%clk 00:52:50]} {[%emt 00:03:15]} 25. Ne2 {[%clk 00:27:59]} {[%emt 00:00:42]}
Bh6 {[%clk 00:51:33]} {[%emt 00:01:46]} 26. Nf4 {[%clk 00:27:29]} {[%emt
00:01:01]} Bxf4 {[%clk 00:51:40]} {[%emt 00:00:24]} 27. Qxf4 {[%clk 00:27:26]}
{[%emt 00:00:33]} Kf7 {[%clk 00:49:40]} {[%emt 00:02:29]} 28. Rf1 {[%clk
00:25:55]} {[%emt 00:02:01]} Nh6 {[%clk 00:42:35]} {[%emt 00:07:35]} 29. Kf2
{[%clk 00:24:59]} {[%emt 00:01:25]} Qh5 {[%clk 00:40:20]} {[%emt 00:02:46]} 30.
Rh1 {[%clk 00:24:44]} {[%emt 00:00:44]} Ng6 {[%clk 00:40:00]} {[%emt 00:00:52]}
31. Bg2 {[%clk 00:21:35]} {[%emt 00:03:39]} Nxf4 {[%clk 00:39:48]} {[%emt
00:00:42]} 32. Rxh5 {[%clk 00:21:47]} {[%emt 00:00:17]} Nxh5 {[%clk 00:39:33]}
{[%emt 00:00:45]} 33. Rh1 {[%clk 00:21:50]} {[%emt 00:00:27]} Ng4+ {[%clk
00:39:44]} {[%emt 00:00:20]} 34. Ke1 {[%clk 00:22:01]} {[%emt 00:00:18]} Rh6
{[%clk 00:38:29]} {[%emt 00:01:45]} 0-1

[Event "The Schackveckan 2023: Göteborg open"]
[Site "Göteborgs schackcentrum, Vegagatan 20, Gothenburg, Sweden"]
[Date "2023.08.13"]
[Round "8.8"]
[White "Westlund, Tim"]
[Black "Granath, Andreas"]
[Result "1-0"]
[TimeControl "15 minutes + 5 seconds per move from move one (Round 1 - 4) / 90 minutes + 30 seconds per move from move one (Round 5 - 8)"]
[WhiteFideId "1754718"]
[BlackFideId "1743333"]
[WhiteElo "1861"]
[BlackElo "1673"]

1. e4 {[%clk 01:30:58]} {[%emt 00:00:01]} c5 {[%clk 01:30:54]} {[%emt
00:00:06]} 2. Nf3 {[%clk 01:30:48]} {[%emt 00:00:41]} Nc6 {[%clk 01:31:17]}
{[%emt 00:00:07]} 3. Bb5 {[%clk 01:29:50]} {[%emt 00:01:28]} g6 {[%clk
01:31:16]} {[%emt 00:00:31]} 4. Bxc6 {[%clk 01:28:56]} {[%emt 00:01:23]} dxc6
{[%clk 01:31:36]} {[%emt 00:00:11]} 5. d3 {[%clk 01:28:44]} {[%emt 00:00:41]}
Bg7 {[%clk 01:32:01]} {[%emt 00:00:06]} 6. h3 {[%clk 01:28:05]} {[%emt
00:01:09]} e5 {[%clk 01:32:15]} {[%emt 00:00:15]} 7. Nc3 {[%clk 01:25:36]}
{[%emt 00:03:00]} Qc7 {[%clk 01:32:20]} {[%emt 00:00:25]} 8. Be3 {[%clk
01:24:59]} {[%emt 00:01:08]} b6 {[%clk 01:32:28]} {[%emt 00:00:21]} 9. Qd2
{[%clk 01:24:00]} {[%emt 00:01:27]} Nf6 {[%clk 01:32:12]} {[%emt 00:00:47]} 10.
Nh2 {[%clk 01:21:47]} {[%emt 00:02:44]} Nh5 {[%clk 01:28:52]} {[%emt 00:03:50]}
11. Ne2 {[%clk 01:19:35]} {[%emt 00:02:42]} O-O {[%clk 01:19:32]} {[%emt
00:09:49]} 12. g4 {[%clk 01:18:59]} {[%emt 00:01:07]} Nf6 {[%clk 01:16:38]}
{[%emt 00:03:24]} 13. Bh6 {[%clk 01:18:48]} {[%emt 00:00:41]} c4 {[%clk
01:16:01]} {[%emt 00:01:08]} 14. Qg5 {[%clk 01:14:36]} {[%emt 00:04:40]} cxd3
{[%clk 01:14:32]} {[%emt 00:02:01]} 15. cxd3 {[%clk 01:14:48]} {[%emt
00:00:17]} Ba6 {[%clk 01:14:45]} {[%emt 00:00:17]} 16. Bxg7 {[%clk 01:12:56]}
{[%emt 00:02:21]} Kxg7 {[%clk 01:14:57]} {[%emt 00:00:19]} 17. Ng3 {[%clk
01:12:31]} {[%emt 00:00:52]} Bxd3 {[%clk 01:14:59]} {[%emt 00:00:30]} 18. Nf5+
{[%clk 01:12:49]} {[%emt 00:00:13]} Kg8 {[%clk 01:14:00]} {[%emt 00:01:29]} 19.
Qxf6 {[%clk 01:08:30]} {[%emt 00:04:48]} gxf5 {[%clk 01:14:09]} {[%emt
00:00:21]} 20. gxf5 {[%clk 01:08:35]} {[%emt 00:00:25]} Rfd8 {[%clk 01:13:09]}
{[%emt 00:01:30]} 21. Qh6 {[%clk 01:07:33]} {[%emt 00:01:32]} f6 {[%clk
01:12:51]} {[%emt 00:00:49]} 22. Rg1+ {[%clk 01:07:52]} {[%emt 00:00:10]} 1-0

[Event "The Schackveckan 2023: Göteborg open"]
[Site "Göteborgs schackcentrum, Vegagatan 20, Gothenburg, Sweden"]
[Date "2023.08.13"]
[Round "8.9"]
[White "Johansson, William"]
[Black "Torres, Lucas"]
[Result "1-0"]
[TimeControl "15 minutes + 5 seconds per move from move one (Round 1 - 4) / 90 minutes + 30 seconds per move from move one (Round 5 - 8)"]
[WhiteFideId "1744070"]
[BlackFideId "1769464"]
[WhiteElo "2052"]
[BlackElo "1501"]

1. d4 {[%clk 01:30:53]} {[%emt 00:00:06]} d5 {[%clk 01:26:05]} {[%emt
00:04:56]} 2. Nf3 {[%clk 01:31:15]} {[%emt 00:00:07]} Nf6 {[%clk 01:26:22]}
{[%emt 00:00:14]} 3. c3 {[%clk 01:31:39]} {[%emt 00:00:06]} Bf5 {[%clk
01:26:23]} {[%emt 00:00:28]} 4. Qb3 {[%clk 01:32:03]} {[%emt 00:00:06]} b6
{[%emt 00:03:05]} 5. Bf4 {[%emt 00:01:45]} e6 {[%clk 01:21:08]} {[%emt
00:00:55]} 6. e3 {[%clk 01:32:11]} {[%emt 00:00:22]} Bd6 {[%clk 01:20:23]}
{[%emt 00:01:15]} 7. Ne5 {[%clk 01:32:16]} {[%emt 00:00:25]} c6 {[%clk
01:15:33]} {[%emt 00:05:20]} 8. h3 {[%clk 01:26:23]} {[%emt 00:06:23]} Qc7
{[%clk 01:13:40]} {[%emt 00:02:22]} 9. Nd2 {[%clk 01:26:09]} {[%emt 00:00:45]}
O-O {[%clk 01:05:02]} {[%emt 00:09:09]} 10. Be2 {[%clk 01:24:05]} {[%emt
00:02:34]} Nbd7 {[%clk 01:04:38]} {[%emt 00:00:52]} 11. Ndf3 {[%clk 01:24:22]}
{[%emt 00:00:14]} Ne4 {[%clk 01:01:28]} {[%emt 00:03:40]} 12. Rc1 {[%clk
01:12:14]} {[%emt 00:12:39]} f6 {[%clk 00:51:46]} {[%emt 00:10:11]} 13. Nd3
{[%emt 00:06:14]} e5 {[%clk 00:46:29]} {[%emt 00:00:02]} 14. Bh2 {[%clk
01:11:32]} {[%emt 00:01:13]} Be6 {[%clk 00:36:36]} {[%emt 00:10:21]} 15. O-O
{[%clk 01:04:53]} {[%emt 00:07:11]} c5 {[%clk 00:36:06]} {[%emt 00:01:01]} 16.
Nde1 {[%clk 01:01:41]} {[%emt 00:03:41]} c4 {[%clk 00:31:14]} {[%emt 00:05:22]}
17. Qc2 {[%clk 01:01:48]} {[%emt 00:00:23]} b5 {[%clk 00:29:28]} {[%emt
00:02:18]} 18. Nd2 {[%clk 01:01:44]} {[%emt 00:00:33]} Bf5 {[%clk 00:28:04]}
{[%emt 00:01:53]} 19. Nxe4 {[%clk 01:01:59]} {[%emt 00:00:16]} Bxe4 {[%clk
00:28:16]} {[%emt 00:00:18]} 20. Qd2 {[%clk 01:02:08]} {[%emt 00:00:18]} exd4
{[%clk 00:26:49]} {[%emt 00:02:00]} 21. Bxd6 {[%clk 01:02:31]} {[%emt
00:00:07]} dxe3 {[%clk 00:26:53]} {[%emt 00:00:25]} 22. Qxd5+ {[%clk 01:01:25]}
{[%emt 00:01:36]} Bxd5 {[%clk 00:25:31]} {[%emt 00:01:53]} 23. Bxc7 {[%clk
01:01:48]} {[%emt 00:00:07]} exf2+ {[%clk 00:25:48]} {[%emt 00:00:13]} 24. Rxf2
{[%clk 01:01:58]} {[%emt 00:00:20]} Rac8 {[%clk 00:25:31]} {[%emt 00:00:47]} 25.
Bd6 {[%clk 01:02:14]} {[%emt 00:00:13]} Rfe8 {[%clk 00:25:48]} {[%emt
00:00:14]} 26. Bf3 {[%clk 01:02:32]} {[%emt 00:00:12]} Bxf3 {[%clk 00:25:44]}
{[%emt 00:00:34]} 27. Nxf3 {[%clk 01:02:52]} {[%emt 00:00:10]} Re6 {[%clk
00:26:04]} {[%emt 00:00:09]} 28. Rd1 {[%clk 01:02:48]} {[%emt 00:00:35]} Nb6
{[%clk 00:25:48]} {[%emt 00:00:45]} 29. Bg3 {[%clk 01:01:37]} {[%emt 00:01:41]}
Na4 {[%clk 00:25:41]} {[%emt 00:00:37]} 30. Nd4 {[%clk 01:01:50]} {[%emt
00:00:18]} Rd8 {[%clk 00:24:47]} {[%emt 00:01:23]} 31. Rfd2 {[%clk 01:01:26]}
{[%emt 00:00:54]} Re3 {[%clk 00:24:16]} {[%emt 00:01:01]} 32. Bf2 {[%clk
01:00:46]} {[%emt 00:01:11]} Rd3 {[%clk 00:24:12]} {[%emt 00:00:33]} 33. Rxd3
{[%clk 01:00:16]} {[%emt 00:01:01]} cxd3 {[%clk 00:24:31]} {[%emt 00:00:11]} 34.
Rxd3 {[%clk 00:59:18]} {[%emt 00:01:28]} Nxb2 {[%clk 00:24:55]} {[%emt
00:00:05]} 35. Re3 {[%clk 00:57:56]} {[%emt 00:01:51]} Nd1 {[%clk 00:25:04]}
{[%emt 00:00:23]} 36. Re7 {[%clk 00:57:56]} {[%emt 00:00:29]} Nxc3 {[%clk
00:25:15]} {[%emt 00:00:20]} 37. Rxa7 {[%clk 00:58:02]} {[%emt 00:00:24]} Rxd4
{[%clk 00:25:15]} {[%emt 00:00:30]} 38. Bxd4 {[%clk 00:57:53]} {[%emt
00:00:39]} Ne2+ {[%clk 00:25:42]} {[%emt 00:00:03]} 39. Kf2 {[%clk 00:58:13]}
{[%emt 00:00:10]} Nxd4 {[%clk 00:26:07]} {[%emt 00:00:05]} 40. Ke3 {[%clk
00:58:31]} {[%emt 00:00:11]} Nc2+ {[%clk 00:25:51]} {[%emt 00:00:47]} 41. Ke4
{[%clk 00:54:23]} {[%emt 00:04:37]} Nb4 {[%clk 00:25:46]} {[%emt 00:00:36]} 42.
g3 {[%clk 00:53:42]} {[%emt 00:01:10]} h6 {[%clk 00:25:46]} {[%emt 00:00:30]}
43. a3 {[%clk 00:51:11]} {[%emt 00:03:02]} Nc2 {[%clk 00:26:12]} {[%emt
00:00:04]} 44. Kd3 {[%clk 00:51:24]} {[%emt 00:00:17]} Ne1+ {[%clk 00:26:24]}
{[%emt 00:00:17]} 45. Kc3 {[%clk 00:51:13]} {[%emt 00:00:41]} Nf3 {[%clk
00:26:34]} {[%emt 00:00:21]} 46. Kb4 {[%clk 00:49:35]} {[%emt 00:02:07]} Nd4
{[%clk 00:27:00]} {[%emt 00:00:04]} 47. Kc5 {[%clk 00:49:28]} {[%emt 00:00:37]}
Ne2 {[%clk 00:27:21]} {[%emt 00:00:10]} 48. g4 {[%clk 00:49:12]} {[%emt
00:00:46]} Nf4 {[%clk 00:27:17]} {[%emt 00:00:31]} 49. h4 {[%clk 00:48:19]}
{[%emt 00:01:25]} Ng6 {[%clk 00:27:30]} {[%emt 00:00:14]} 50. Kxb5 {[%clk
00:48:28]} {[%emt 00:00:24]} Nxh4 {[%clk 00:27:49]} {[%emt 00:00:11]} 51. Rd7
{[%clk 00:46:43]} {[%emt 00:02:14]} f5 {[%clk 00:27:20]} {[%emt 00:01:00]} 52.
gxf5 {[%clk 00:46:30]} {[%emt 00:00:44]} Nxf5 {[%clk 00:27:44]} {[%emt
00:00:06]} 53. a4 {[%clk 00:46:48]} {[%emt 00:00:12]} g5 {[%clk 00:27:58]}
{[%emt 00:00:16]} 54. a5 {[%clk 00:47:08]} {[%emt 00:00:10]} 1-0

[Event "The Schackveckan 2023: Göteborg open"]
[Site "Göteborgs schackcentrum, Vegagatan 20, Gothenburg, Sweden"]
[Date "2023.08.13"]
[Round "8.10"]
[White "Thern, Alfred"]
[Black "Harila, Per"]
[Result "0-1"]
[TimeControl "15 minutes + 5 seconds per move from move one (Round 1 - 4) / 90 minutes + 30 seconds per move from move one (Round 5 - 8)"]
[WhiteFideId "1775227"]
[BlackFideId "1707248"]
[WhiteElo "1643"]
[BlackElo "2016"]

1. e4 {[%clk 01:30:52]} {[%emt 00:00:07]} c5 {[%clk 01:30:57]} {[%emt
00:00:03]} 2. Nf3 {[%clk 01:30:47]} {[%emt 00:00:35]} g6 {[%clk 01:31:09]}
{[%emt 00:00:19]} 3. Bc4 {[%clk 01:30:27]} {[%emt 00:00:50]} Bg7 {[%clk
01:31:00]} {[%emt 00:00:39]} 4. c3 {[%clk 01:30:42]} {[%emt 00:00:15]} Nc6
{[%clk 01:29:07]} {[%emt 00:02:23]} 5. O-O {[%clk 01:30:23]} {[%emt 00:00:48]}
Qb6 {[%clk 01:27:01]} {[%emt 00:02:36]} 6. d3 {[%clk 01:28:36]} {[%emt
00:02:17]} d6 {[%clk 01:26:34]} {[%emt 00:00:58]} 7. h3 {[%clk 01:28:31]}
{[%emt 00:00:35]} Na5 {[%clk 01:25:42]} {[%emt 00:01:22]} 8. Nbd2 {[%clk
01:28:22]} {[%emt 00:00:38]} Nxc4 {[%clk 01:25:53]} {[%emt 00:00:20]} 9. Nxc4
{[%clk 01:28:50]} {[%emt 00:00:02]} Qc7 {[%clk 01:26:09]} {[%emt 00:00:13]} 10.
a4 {[%clk 01:28:43]} {[%emt 00:00:38]} Bd7 {[%clk 01:25:25]} {[%emt 00:01:14]}
11. Bf4 {[%clk 01:27:57]} {[%emt 00:01:16]} e5 {[%clk 01:24:24]} {[%emt
00:01:30]} 12. Bh2 {[%clk 01:28:15]} {[%emt 00:00:12]} Ne7 {[%clk 01:24:36]}
{[%emt 00:00:19]} 13. Nfd2 {[%clk 01:27:45]} {[%emt 00:01:00]} O-O {[%clk
01:24:15]} {[%emt 00:00:50]} 14. f4 {[%clk 01:27:14]} {[%emt 00:01:02]} Nc6
{[%clk 01:23:34]} {[%emt 00:01:11]} 15. fxe5 {[%clk 01:26:44]} {[%emt
00:00:59]} dxe5 {[%clk 01:23:07]} {[%emt 00:00:58]} 16. Nf3 {[%clk 01:25:58]}
{[%emt 00:01:16]} Be6 {[%clk 01:20:57]} {[%emt 00:02:40]} 17. Ne3 {[%clk
01:25:15]} {[%emt 00:01:13]} Rad8 {[%clk 01:19:25]} {[%emt 00:02:02]} 18. Qe2
{[%clk 01:21:26]} {[%emt 00:04:18]} Qd7 {[%clk 01:18:43]} {[%emt 00:01:12]} 19.
Rfd1 {[%clk 01:20:14]} {[%emt 00:01:42]} f6 {[%clk 01:17:34]} {[%emt 00:01:39]}
20. d4 {[%clk 01:15:53]} {[%emt 00:04:51]} cxd4 {[%clk 01:17:32]} {[%emt
00:00:32]} 21. cxd4 {[%clk 01:16:17]} {[%emt 00:00:07]} Nxd4 {[%clk 01:16:30]}
{[%emt 00:01:30]} 22. Nxd4 {[%clk 01:16:04]} {[%emt 00:00:44]} exd4 {[%clk
01:16:54]} {[%emt 00:00:07]} 23. Nc2 {[%clk 01:10:00]} {[%emt 00:06:34]} d3
{[%clk 01:17:00]} {[%emt 00:00:24]} 24. Qe3 {[%clk 01:08:58]} {[%emt 00:01:32]}
Bb3 {[%clk 01:16:39]} {[%emt 00:00:50]} 25. Rac1 {[%clk 01:07:06]} {[%emt
00:02:22]} Qxa4 {[%clk 01:15:44]} {[%emt 00:01:24]} 26. Ne1 {[%clk 00:53:31]}
{[%emt 00:14:06]} Bxd1 {[%clk 01:15:16]} {[%emt 00:00:57]} 27. Nxd3 {[%clk
00:52:52]} {[%emt 00:01:11]} b6 {[%clk 01:12:41]} {[%emt 00:03:05]} 28. Qd2
{[%clk 00:52:06]} {[%emt 00:01:15]} Bb3 {[%clk 01:12:34]} {[%emt 00:00:36]} 29.
Qe3 {[%clk 00:51:12]} {[%emt 00:01:25]} 0-1

[Event "The Schackveckan 2023: Göteborg open"]
[Site "Göteborgs schackcentrum, Vegagatan 20, Gothenburg, Sweden"]
[Date "2023.08.13"]
[Round "8.11"]
[White "Havner, Arvid"]
[Black "Sandberg, Lucas"]
[Result "1/2-1/2"]
[TimeControl "15 minutes + 5 seconds per move from move one (Round 1 - 4) / 90 minutes + 30 seconds per move from move one (Round 5 - 8)"]
[WhiteFideId "1769308"]
[BlackFideId "1773712"]
[WhiteElo "1825"]
[BlackElo "1311"]

1. e4 {[%clk 01:30:57]} {[%emt 00:00:02]} c5 {[%clk 01:30:58]} {[%emt
00:00:03]} 2. Nf3 {[%clk 01:31:23]} {[%emt 00:00:04]} d6 {[%clk 01:31:01]}
{[%emt 00:00:27]} 3. d4 {[%clk 01:31:49]} {[%emt 00:00:04]} cxd4 {[%clk
01:31:29]} {[%emt 00:00:02]} 4. Nxd4 {[%clk 01:32:14]} {[%emt 00:00:05]} Nf6
{[%clk 01:31:54]} {[%emt 00:00:05]} 5. Nc3 {[%clk 01:32:41]} {[%emt 00:00:03]}
g6 {[%clk 01:32:20]} {[%emt 00:00:04]} 6. Be3 {[%clk 01:33:07]} {[%emt
00:00:04]} Bg7 {[%clk 01:32:46]} {[%emt 00:00:04]} 7. f3 {[%clk 01:33:33]}
{[%emt 00:00:04]} O-O {[%clk 01:33:12]} {[%emt 00:00:04]} 8. Qd2 {[%clk
01:34:01]} {[%emt 00:00:03]} Nc6 {[%clk 01:33:36]} {[%emt 00:00:06]} 9. O-O-O
{[%clk 01:34:26]} {[%emt 00:00:04]} d5 {[%clk 01:34:03]} {[%emt 00:00:03]} 10.
Kb1 {[%clk 01:34:54]} {[%emt 00:00:02]} Nxd4 {[%clk 01:33:35]} {[%emt
00:00:58]} 11. e5 {[%clk 01:35:12]} {[%emt 00:00:12]} Nd7 {[%clk 01:33:19]}
{[%emt 00:00:46]} 12. Bxd4 {[%clk 01:35:15]} {[%emt 00:00:28]} Nxe5 {[%clk
01:32:27]} {[%emt 00:01:20]} 13. f4 {[%clk 01:32:36]} {[%emt 00:03:10]} Nc6
{[%clk 01:31:59]} {[%emt 00:00:59]} 14. Bxg7 {[%clk 01:32:53]} {[%emt
00:00:12]} Kxg7 {[%clk 01:32:28]} 15. Qxd5 {[%clk 01:30:38]} {[%emt 00:02:44]}
Be6 {[%clk 01:32:43]} {[%emt 00:00:16]} 16. Qxd8 {[%clk 01:29:55]} {[%emt
00:01:13]} Rfxd8 {[%clk 01:33:07]} {[%emt 00:00:05]} 17. Bd3 {[%clk 01:28:44]}
{[%emt 00:01:41]} Nd4 {[%clk 01:30:15]} {[%emt 00:03:23]} 18. Nb5 {[%clk
01:26:38]} {[%emt 00:02:36]} Nxb5 {[%clk 01:30:02]} {[%emt 00:00:43]} 19. Bxb5
{[%clk 01:27:07]} a6 {[%clk 01:28:30]} {[%emt 00:02:02]} 20. Bd3 {[%clk
01:26:53]} {[%emt 00:00:43]} Bd5 {[%clk 01:27:55]} {[%emt 00:01:06]} 21. Rd2
{[%clk 01:26:34]} {[%emt 00:00:49]} Bc6 {[%clk 01:25:36]} {[%emt 00:02:49]} 22.
Rhd1 {[%clk 01:26:26]} {[%emt 00:00:37]} Rd7 {[%clk 01:25:52]} {[%emt
00:00:16]} 23. Bf1 {[%clk 01:25:28]} {[%emt 00:01:27]} Rxd2 {[%clk 01:25:04]}
{[%emt 00:01:19]} 24. Rxd2 {[%clk 01:25:48]} {[%emt 00:00:08]} Re8 {[%clk
01:24:59]} {[%emt 00:00:36]} 25. c4 {[%clk 01:19:20]} {[%emt 00:06:57]} f6
{[%clk 01:20:31]} {[%emt 00:04:59]} 26. Kc2 {[%clk 01:18:13]} {[%emt 00:01:37]}
e5 {[%clk 01:20:18]} {[%emt 00:00:43]} 27. fxe5 {[%clk 01:18:35]} {[%emt
00:00:08]} fxe5 {[%clk 01:20:33]} {[%emt 00:00:15]} 28. Kd3 {[%clk 01:18:44]}
{[%emt 00:00:20]} Rf8 {[%clk 01:20:20]} {[%emt 00:00:44]} 29. Ke2 {[%clk
01:17:06]} {[%emt 00:02:07]} Rf4 {[%clk 01:19:18]} {[%emt 00:01:33]} 30. b3
{[%clk 01:17:07]} {[%emt 00:00:29]} Re4+ {[%clk 01:17:11]} {[%emt 00:02:37]} 31.
Kf2 {[%clk 01:17:06]} {[%emt 00:00:30]} Rd4 {[%emt 00:03:20]} 1/2-1/2

[Event "The Schackveckan 2023: Göteborg open"]
[Site "Göteborgs schackcentrum, Vegagatan 20, Gothenburg, Sweden"]
[Date "2023.08.13"]
[Round "8.12"]
[White "Kosmidis, Thomas"]
[Black "Svensson, Leif"]
[Result "0-1"]
[TimeControl "15 minutes + 5 seconds per move from move one (Round 1 - 4) / 90 minutes + 30 seconds per move from move one (Round 5 - 8)"]
[WhiteFideId "1753380"]
[BlackFideId "1702459"]
[WhiteElo "1721"]
[BlackElo "2038"]

1. d4 {[%clk 01:30:55]} {[%emt 00:00:06]} d5 {[%clk 01:30:56]} {[%emt
00:00:04]} 2. c4 {[%clk 01:31:16]} {[%emt 00:00:08]} Bf5 {[%clk 01:31:21]}
{[%emt 00:00:06]} 3. Nc3 {[%clk 01:30:37]} {[%emt 00:01:09]} e6 {[%clk
01:31:45]} {[%emt 00:00:05]} 4. cxd5 {[%clk 01:30:49]} {[%emt 00:00:19]} exd5
{[%clk 01:32:08]} {[%emt 00:00:06]} 5. Qb3 {[%clk 01:28:01]} {[%emt 00:03:18]}
Nc6 {[%clk 01:32:26]} {[%emt 00:00:12]} 6. e4 {[%clk 01:23:39]} {[%emt
00:04:53]} dxe4 {[%clk 01:30:40]} {[%emt 00:02:15]} 7. d5 {[%clk 01:23:53]}
{[%emt 00:00:15]} Nb4 {[%clk 01:27:58]} {[%emt 00:03:13]} 8. a3 {[%clk
01:22:13]} {[%emt 00:02:10]} Nd3+ {[%clk 01:27:59]} {[%emt 00:00:29]} 9. Bxd3
{[%clk 01:22:15]} {[%emt 00:00:28]} exd3 {[%clk 01:28:22]} {[%emt 00:00:07]} 10.
Qxb7 {[%clk 01:21:11]} {[%emt 00:01:34]} Bd6 {[%clk 01:28:03]} {[%emt
00:00:49]} 11. Nf3 {[%clk 01:19:32]} {[%emt 00:02:09]} Nf6 {[%clk 01:27:33]}
{[%emt 00:01:00]} 12. O-O {[%clk 01:18:37]} {[%emt 00:01:25]} O-O {[%clk
01:27:59]} {[%emt 00:00:05]} 13. Qc6 {[%clk 01:13:56]} {[%emt 00:05:09]} Rb8
{[%clk 01:23:36]} {[%emt 00:04:54]} 14. Qc4 {[%clk 01:12:40]} {[%emt 00:01:43]}
Ng4 {[%clk 01:19:01]} {[%emt 00:05:08]} 15. Bf4 {[%clk 01:11:25]} {[%emt
00:01:44]} Rxb2 {[%clk 01:12:30]} {[%emt 00:07:02]} 16. Bxd6 {[%clk 01:11:09]}
{[%emt 00:00:47]} Qxd6 {[%clk 01:12:15]} {[%emt 00:00:44]} 17. h3 {[%clk
01:10:23]} {[%emt 00:01:16]} Ne5 {[%clk 01:10:37]} {[%emt 00:02:08]} 18. Nxe5
{[%clk 01:09:39]} {[%emt 00:01:14]} Qxe5 {[%clk 01:11:02]} {[%emt 00:00:05]} 19.
Rfe1 {[%clk 01:09:26]} {[%emt 00:00:41]} Qf6 {[%clk 01:11:24]} {[%emt
00:00:10]} 20. Ne4 {[%clk 01:07:51]} {[%emt 00:02:05]} Bxe4 {[%clk 01:11:37]}
{[%emt 00:00:17]} 21. Qxe4 {[%clk 01:07:39]} {[%emt 00:00:43]} Qxf2+ {[%clk
01:12:00]} {[%emt 00:00:07]} 22. Kh1 {[%clk 01:07:30]} {[%emt 00:00:39]} Re2
{[%clk 01:08:32]} {[%emt 00:03:57]} 23. Rxe2 {[%clk 01:06:43]} {[%emt
00:01:16]} dxe2 {[%clk 01:08:55]} {[%emt 00:00:08]} 24. Kh2 {[%clk 01:04:08]}
{[%emt 00:03:05]} h6 {[%clk 01:06:21]} {[%emt 00:03:03]} 25. Rb1 {[%clk
01:04:12]} {[%emt 00:00:27]} f5 {[%clk 01:04:39]} {[%emt 00:02:12]} 26. Qe6+
{[%clk 00:58:36]} {[%emt 00:06:06]} Kh7 {[%clk 01:04:20]} {[%emt 00:00:48]} 27.
Qe7 {[%clk 00:58:59]} {[%emt 00:00:08]} Rf6 {[%clk 01:04:28]} {[%emt 00:00:19]}
28. Qe5 {[%clk 00:57:00]} {[%emt 00:02:30]} Rg6 {[%clk 01:04:36]} {[%emt
00:00:23]} 29. Rg1 {[%clk 00:56:50]} {[%emt 00:00:40]} f4 {[%clk 01:03:27]}
{[%emt 00:01:39]} 30. Qe4 {[%clk 00:57:08]} {[%emt 00:00:12]} f3 {[%clk
01:02:49]} {[%emt 00:01:09]} 31. Kh1 {[%clk 00:52:39]} {[%emt 00:04:59]} fxg2+
{[%clk 01:02:41]} {[%emt 00:00:39]} 0-1